fUSD/lending_fUSD_20251014
["ID","MTS","AMOUNT","RATE_DAILY","PERIOD"]
[391268957,1760455846895,-900.0,0.00018938,2]
[391268959,1760455846904,-500.0,0.0001894,2]
[391268961,1760455846913,-488.40405698,0.0001895,2]
[391268963,1760455846923,-500.0,0.00018973,2]
[391268965,1760455846932,-500.0,0.00018973,2]
[391268967,1760455846941,-1785.5018124,0.00018989,2]
[391268969,1760455846951,-2412.2495923,0.00018989,2]
[391268971,1760455846960,-1296.785466,0.00018989,2]
[391268973,1760455846970,-1320.8556202,0.00018989,2]
[391268975,1760455846979,-151.74,0.0001899,2]
[391268977,1760455846988,-206.9549592,0.0001899,2]
[391268979,1760455846998,-403.39851878,0.00018999,2]
[391268981,1760455847007,-500.0,0.00018999,2]
[391268983,1760455847016,-500.0,0.00018999,2]
[391268985,1760455847025,-634.77658748,0.00018999,2]
[391268987,1760455847035,-489.37784675,0.00018999,2]
[391268989,1760455847044,-500.0,0.00018999,2]
[391268991,1760455847053,-500.0,0.00018999,2]
[391268993,1760455847062,-500.0,0.00018999,2]
[391268995,1760455847071,-539.8566001,0.00018999,2]
[391268997,1760455847081,-500.0,0.00018999,2]
[391268999,1760455847090,-500.0,0.00019,2]
[391269001,1760455847100,-91217.01563482,0.00019,2]
[391269003,1760455847111,-132747.27311756,0.00019,2]
[391269005,1760455847125,-95205.17994051,0.00019,2]
[391269009,1760455847150,-3118.69337497,0.00019,2]
[391269011,1760455847162,-1116.115,0.00019,2]
[391269014,1760455847184,-11149.0,0.00019,2]
[391269276,1760455856287,2000.0,0.00027397,120]
[391269277,1760455867086,1697.35986758,0.00027397,120]
[391269278,1760455871920,863.10497679,0.00027397,120]
[391269279,1760455920923,500.0,0.00027397,120]
[391269280,1760456000990,300.0,0.00027397,120]
[391269281,1760456090825,1915.3,0.00027397,120]
[391269282,1760456095053,300.0,0.00027397,120]
[391269283,1760456118838,717.91581694,0.000273,120]
[391269285,1760456144978,200.0,0.00027397,120]
[391269286,1760456161886,200.0,0.00027397,120]
[391269287,1760456169243,200.0,0.00027,120]
[391269288,1760456182520,200.0,0.00027,120]
[391269289,1760456189443,1600.0,0.00026629,120]
[391269290,1760456201129,200.0,0.00027397,120]
[391269291,1760456205224,200.0,0.00027,120]
[391269292,1760456220416,1000.0,0.00027,120]
[391269293,1760456227447,200.0,0.00027397,120]
[391269301,1760456246800,200.0,0.00027,120]
[391269302,1760456263893,200.0,0.00027,120]
[391269303,1760456276816,165.36632064,0.00027397,120]
[391269304,1760456308672,402.67293089,0.00027397,120]
[391269306,1760456335433,500.0,0.00027397,120]
[391269308,1760456450308,218.86,0.00027397,120]
[391269309,1760456504325,900.0,0.00027,120]
[391269310,1760456555305,2777.0,0.00027397,120]
[391269313,1760456644279,205.72,0.00026986,120]
[391269314,1760456648197,3300.0,0.000272,120]
[391269315,1760456685034,3076.0,0.000272,120]
[391269318,1760456991740,200.0,0.00027397,120]
[391269320,1760457026223,151.0,0.00027397,120]
[391269324,1760457032101,-2937.33291682,0.0001373,5]
[391269325,1760457032110,-195.0,0.00015103,2]
[391269326,1760457032120,-235.24757235,0.00016328,2]
[391269327,1760457032131,-180.140235,0.00017204,2]
[391269328,1760457032141,-4648.378243,0.00017217,2]
[391269329,1760457032150,-383.87,0.00017391,2]
[391269330,1760457032160,-1200.0,0.00017431,2]
[391269331,1760457032591,-1567.16,0.00017432,2]
[391269332,1760457032600,-250.0,0.00017731,7]
[391269333,1760457032610,-300.0,0.00017752,2]
[391269334,1760457032619,-1600.0,0.00017753,2]
[391269335,1760457032631,-301.35838194,0.00017948,2]
[391269336,1760457032640,-2815.99644297,0.00017948,2]
[391269337,1760457032652,-355.57996271,0.00017948,2]
[391269338,1760457032663,-577.44207975,0.00017948,2]
[391269339,1760457032673,-334.79638505,0.00017948,2]
[391269340,1760457032682,-890.0,0.00017961,2]
[391269341,1760457032692,-4908.60799165,0.00017961,2]
[391269342,1760457032703,-925.84284746,0.00017961,2]
[391269343,1760457032714,-386.28854406,0.00017961,2]
[391269344,1760457032727,-1338.92422624,0.00017961,2]
[391269345,1760457032738,-832.28589259,0.00017961,2]
[391269346,1760457032752,-1608.040498,0.00017961,2]
[391269347,1760457032765,-150.0,0.00017998,2]
[391269348,1760457032775,-500.0,0.00017999,2]
[391269349,1760457032785,-500.0,0.00017999,2]
[391269350,1760457032797,-500.0,0.00017999,2]
[391269351,1760457032807,-500.0,0.00017999,2]
[391269352,1760457032816,-500.0,0.00017999,2]
[391269353,1760457032831,-500.0,0.00017999,2]
[391269354,1760457032843,-571.69158027,0.00017999,2]
[391269355,1760457032853,-500.0,0.00017999,2]
[391269356,1760457032863,-500.0,0.00017999,2]
[391269357,1760457032872,-500.0,0.00017999,2]
[391269358,1760457032882,-500.0,0.00017999,2]
[391269359,1760457032891,-105572.54928218,0.00018,2]
[391269360,1760457032906,-265.37766493,0.00018,2]
[391269361,1760457032917,-121130.0,0.00018,2]
[391269362,1760457032928,-449.6702639,0.00018,2]
[391269424,1760457037838,-74129.23747757,0.00018,2]
[391269425,1760457037850,-344.83024,0.00018,2]
[391269426,1760457038045,-1107.20022121,0.00018,2]
[391269427,1760457038057,-3618.15744952,0.00018,2]
[391269428,1760457038068,-451.6515,0.00018,2]
[391269429,1760457038080,-1251.9,0.00018,2]
[391269430,1760457038092,-1434.21984836,0.00018,2]
[391269432,1760457038145,-20994.8290696,0.00018,2]
[391269443,1760457040146,-2001.29930003,0.00018,2]
[391269444,1760457040262,-496.44499992,0.00018,2]
[391269445,1760457040273,-1612.94395603,0.00018,2]
[391269446,1760457040285,-14202.22478396,0.00018,2]
[391269447,1760457040296,-36365.40412271,0.00018,2]
[391269482,1760457043156,-396.83604645,0.00018,2]
[391269484,1760457043167,-1186.92640185,0.00018,2]
[391269486,1760457043201,-30306.64153013,0.00018,2]
[391269487,1760457043212,-2214.87446855,0.00018,2]
[391269488,1760457043223,-740.1619741,0.00018,2]
[391269489,1760457043234,-12023.2932235,0.00018,2]
[391269490,1760457043245,-18563.95380196,0.00018,2]
[391269491,1760457043254,-277.35679052,0.00018048,2]
[391269492,1760457043263,-9552.16786547,0.00018048,2]
[391269493,1760457043272,-1676.0,0.00018059,2]
[391269494,1760457043282,-3749.01848535,0.00018074,2]
[391269495,1760457043291,-1150.44155784,0.00018103,2]
[391269497,1760457043300,-3749.01848535,0.00018199,2]
[391269498,1760457043309,-301.35838194,0.00018226,2]
[391269499,1760457043318,-334.796385,0.00018227,2]
[391269500,1760457043327,-1676.0,0.0001825,2]
[391269501,1760457043337,-3749.01848535,0.00018325,2]
[391269502,1760457043346,-285.753,0.000184,2]
[391269503,1760457043355,-3749.01848535,0.0001845,2]
[391269504,1760457043365,-695.39793187,0.00018489,2]
[391269505,1760457043374,-2000.0,0.00018489,2]
[391269506,1760457043383,-1000.0,0.00018489,2]
[391269507,1760457043393,-2000.0,0.00018489,2]
[391269508,1760457043402,-250.0,0.00018489,2]
[391269509,1760457043412,-281.24848935,0.00018489,2]
[391269518,1760457045901,-718.75151065,0.00018489,2]
[391269519,1760457045911,-2000.0,0.00018489,2]
[391269520,1760457045920,-229.29484575,0.00018489,2]
[391269521,1760457045932,-20.70515425,0.00018489,2]
[391269522,1760457045941,-1000.0,0.00018489,2]
[391269523,1760457045951,-1625.0,0.00018489,2]
[391269524,1760457045960,-250.0,0.00018489,2]
[391269525,1760457045970,-1000.0,0.00018489,2]
[391269526,1760457045979,-250.0,0.00018489,2]
[391269527,1760457045989,-1000.0,0.00018489,2]
[391269528,1760457045998,-250.0,0.00018489,2]
[391269529,1760457046007,-231.38536055,0.00018489,2]
[391269530,1760457046018,-287.61963998,0.00018489,2]
[391269531,1760457046128,-480.99499947,0.00018489,2]
[391269532,1760457046138,-250.0,0.00018489,2]
[391269533,1760457046148,-17.28500013,0.00018489,2]
[391269534,1760457046159,-465.67548969,0.00018489,2]
[391269535,1760457046171,-1517.03951018,0.00018489,2]
[391269536,1760457046180,-250.0,0.00018489,2]
[391269537,1760457046192,-1000.0,0.00018489,2]
[391269538,1760457046201,-2000.0,0.00018489,2]
[391269539,1760457046210,-250.0,0.00018489,2]
[391269540,1760457046220,-1000.0,0.00018489,2]
[391269541,1760457046229,-2000.0,0.00018489,2]
[391269542,1760457046239,-300.0,0.00018489,2]
[391269543,1760457046249,-250.0,0.00018489,2]
[391269544,1760457046258,-1000.0,0.00018489,2]
[391269545,1760457046267,-300.0,0.00018489,2]
[391269546,1760457046277,-250.0,0.00018489,2]
[391269547,1760457046287,-1000.0,0.00018489,2]
[391269548,1760457046296,-300.0,0.00018489,2]
[391269549,1760457046306,-1000.0,0.00018489,2]
[391269550,1760457046317,-250.0,0.00018489,2]
[391269551,1760457046695,-300.0,0.00018489,2]
[391269553,1760457046705,-300.0,0.00018489,2]
[391269555,1760457046715,-300.0,0.00018489,2]
[391269556,1760457046724,-300.0,0.00018489,2]
[391269557,1760457046733,-500.0,0.00018489,2]
[391269558,1760457046742,-300.0,0.00018489,2]
[391269559,1760457046752,-500.0,0.00018489,2]
[391269560,1760457046764,-151.0,0.00018489,2]
[391269561,1760457046773,-295.84518884,0.00018489,2]
[391269562,1760457046783,-500.0,0.00018489,2]
[391269563,1760457046792,-500.0,0.00018489,2]
[391269564,1760457046801,-500.0,0.00018489,2]
[391269565,1760457046811,-78.99260834,0.00018489,2]
[391269566,1760457046823,-421.00739166,0.00018489,2]
[391269567,1760457046835,-500.0,0.00018489,2]
[391269568,1760457046843,-500.0,0.00018489,2]
[391269569,1760457046852,-500.0,0.00018489,2]
[391269570,1760457046862,-500.0,0.00018489,2]
[391269571,1760457046872,-500.0,0.00018489,2]
[391269572,1760457046881,-500.0,0.00018489,2]
[391269573,1760457046890,-500.0,0.00018489,2]
[391269574,1760457046900,-500.0,0.00018489,2]
[391269575,1760457046909,-500.0,0.00018489,2]
[391269576,1760457046918,-500.0,0.00018489,2]
[391269577,1760457046927,-500.0,0.00018489,2]
[391269578,1760457046937,-500.0,0.00018489,2]
[391269579,1760457046946,-500.0,0.00018489,2]
[391269580,1760457046955,-500.0,0.00018489,2]
[391269581,1760457046964,-322.6107,0.00018489,2]
[391269582,1760457046973,-500.0,0.00018489,2]
[391269583,1760457046983,-500.0,0.00018489,2]
[391269584,1760457046992,-500.0,0.00018489,2]
[391269585,1760457047001,-500.0,0.00018489,2]
[391269586,1760457047011,-268.0,0.00018489,2]
[391269587,1760457047020,-2000.0,0.00018489,2]
[391269588,1760457047029,-2000.0,0.00018489,2]
[391269589,1760457047038,-2000.0,0.00018489,2]
[391269590,1760457047048,-1820.9183342,0.00018489,2]
[391269591,1760457047059,-179.0816658,0.00018489,2]
[391269592,1760457047068,-2000.0,0.00018489,2]
[391269593,1760457047077,-2000.0,0.00018489,2]
[391269594,1760457047086,-120.9183342,0.00018489,2]
[391269595,1760457139291,500.0,0.00027397,120]
[391269596,1760457225279,300.0,0.00027397,120]
[391269597,1760457228728,150.0,0.00027397,120]
[391269598,1760457240681,150.0,0.00027397,120]
[391269599,1760457243541,1000.0,0.00027397,120]
[391269601,1760457247298,1697.35986758,0.00027397,120]
[391269602,1760457252472,150.0,0.00027397,120]
[391269603,1760457256146,150.0,0.00027397,120]
[391269604,1760457256350,150.0,0.00027397,120]
[391269605,1760457256579,150.0,0.00027397,120]
[391269606,1760457258158,150.0,0.00027397,120]
[391269607,1760457258202,151.65324234,0.00027397,120]
[391269608,1760457263998,277.817,0.00027397,120]
[391269609,1760457284979,1000.0,0.00027397,120]
[391269610,1760457288345,416.0,0.0002602,120]
[391269611,1760457288812,416.0,0.0002601,120]
[391269612,1760457289435,416.0,0.00026,120]
[391269613,1760457289879,416.0,0.0002602,120]
[391269614,1760457290320,416.0,0.0002601,120]
[391269615,1760457290772,416.0,0.00026,120]
[391269616,1760457292255,416.0,0.0002602,120]
[391269617,1760457292293,416.0,0.0002601,120]
[391269618,1760457292339,416.0,0.0002602,120]
[391269619,1760457292550,425.01,0.0002601,120]
[391269620,1760457304189,168.0,0.00024628,120]
[391269621,1760457305517,168.0,0.00025859,120]
[391269622,1760457306877,168.0,0.00027152,120]
[391269623,1760457335477,1000.0,0.00027397,120]
[391269624,1760457346812,1000.0,0.00027397,120]
[391269626,1760457362261,1000.0,0.00027397,120]
[391269627,1760457367149,1000.0,0.00027397,120]
[391269628,1760457374334,1000.0,0.00027397,120]
[391269629,1760457380047,1000.0,0.00027397,120]
[391269630,1760457388890,1000.0,0.00027397,120]
[391269631,1760457390541,1000.0,0.00027397,120]
[391269632,1760457396403,1000.0,0.00027397,120]
[391269633,1760457410238,1000.0,0.00027397,120]
[391269634,1760457432829,1000.0,0.00027397,120]
[391269635,1760457435068,565.8987653,0.00027397,120]
[391269636,1760457472506,1000.0,0.00027397,120]
[391269638,1760457532054,300.0,0.00027397,120]
[391269639,1760457532110,1010.55734284,0.00027397,120]
[391269640,1760457577799,718.4857544,0.00027,120]
[391269641,1760457607969,174.04,8.895e-05,2]
[391269642,1760457608213,174.04,9.363e-05,2]
[391269643,1760457608429,174.04,9.831e-05,2]
[391269644,1760457608660,174.04,0.00010299,2]
[391269645,1760457608891,174.04,0.00010767,2]
[391269646,1760457609102,174.04,0.00011236,2]
[391269647,1760457609308,174.04,0.00011704,2]
[391269648,1760457609515,174.04,0.00012172,2]
[391269649,1760457609753,174.04,0.0001264,2]
[391269650,1760457614592,170.0,0.00024902,120]
[391269651,1760457615273,170.0,0.00026147,120]
[391269652,1760457638129,454.07803979,0.00027397,120]
[391269653,1760457639302,317.20390199,0.00027397,120]
[391269654,1760457640433,310.3601951,0.00027397,120]
[391269655,1760457641552,310.01800975,0.00027397,120]
[391269656,1760457642663,310.00090049,0.00027397,120]
[391269657,1760457665623,176.94942203,0.0001264,2]
[391269658,1760457705019,2021.023,0.00027,120]
[391269660,1760457762233,287.0,0.00027261,120]
[391269663,1760457838395,300.0,0.00027397,120]
[391269669,1760457977383,281.0,0.00027397,120]
[391269672,1760457995021,1163.10497679,0.00027397,120]
[391269673,1760458000443,167.23,0.00027397,120]
[391269674,1760458053283,500.0,0.00027397,120]
[391269683,1760458145918,300.0,0.00027397,120]
[391269688,1760458231984,-174.04,0.00013108,2]
[391269689,1760458231994,-174.04,0.00013576,2]
[391269690,1760458232003,-327.17634802,0.00013699,2]
[391269691,1760458232107,-32.11365198,0.00013699,2]
[391269692,1760458232116,-174.04,0.00014044,2]
[391269693,1760458232127,-174.04,0.00014512,2]
[391269694,1760458232137,-174.04,0.00014981,2]
[391269695,1760458232147,-174.04,0.00015449,2]
[391269696,1760458232156,-174.04,0.00015917,2]
[391269697,1760458232166,-300.0,0.00016383,2]
[391269698,1760458232176,-1200.0,0.00016383,2]
[391269699,1760458232185,-531.0,0.00016384,2]
[391269700,1760458232196,-150.99,0.00016384,2]
[391269701,1760458232206,-3764.95,0.00016384,2]
[391269702,1760458232215,-174.04,0.00016385,2]
[391269703,1760458232224,-9999.99,0.00016385,2]
[391269704,1760458232234,-999.99,0.00016385,2]
[391269705,1760458232243,-166.66,0.00016516,2]
[391269706,1760458232252,-174.04,0.00016853,2]
[391269707,1760458232262,-166.66,0.00016863,2]
[391269708,1760458232271,-166.66,0.00017211,2]
[391269709,1760458232282,-174.04,0.00017321,2]
[391269710,1760458232291,-166.66,0.00017559,2]
[391269711,1760458232301,-174.04,0.00017789,2]
[391269712,1760458232310,-150.0,0.00017801,2]
[391269713,1760458232320,-1050.25,0.00017801,2]
[391269714,1760458232329,-1195.85,0.00017804,2]
[391269715,1760458232339,-666.0,0.00017805,3]
[391269716,1760458232348,-163.13,0.00017821,2]
[391269717,1760458232358,-300.0,0.00017905,2]
[391269718,1760458232367,-166.66,0.00017906,2]
[391269719,1760458232376,-550.0,0.00017994,2]
[391269720,1760458232385,-4156.67125579,0.00017995,2]
[391269735,1760458233708,-1319.79933441,0.00017995,2]
[391269736,1760458233720,-3306.54071636,0.00017995,2]
[391269737,1760458233731,-8250.0,0.00017995,2]
[391269738,1760458233744,-346.84803172,0.00017995,2]
[391269739,1760458233756,-1044.30616614,0.00017995,2]
[391269740,1760458233768,-1294.18963533,0.00017995,2]
[391269741,1760458233778,-1680.0,0.00017995,2]
[391269742,1760458233788,-200.0,0.00018082,2]
[391269743,1760458233797,-829.00845126,0.00018103,2]
[391269744,1760458233807,-1000.0,0.00018243,2]
[391269745,1760458233817,-1267.0,0.00018244,2]
[391269746,1760458233828,-749.0,0.00018244,2]
[391269747,1760458233837,-1412.30995364,0.00018244,2]
[391269748,1760458233849,-636.69004636,0.00018244,2]
[391269749,1760458233859,-1546.0,0.00018244,2]
[391269750,1760458233869,-604.0,0.00018244,2]
[391269751,1760458233879,-1309.055,0.00018244,2]
[391269752,1760458233889,-816.0,0.00018244,2]
[391269753,1760458233900,-2545.0,0.00018244,2]
[391269754,1760458233909,-1182.0,0.00018244,2]
[391269755,1760458233919,-901.0,0.00018244,2]
[391269756,1760458233928,-851.0,0.00018244,2]
[391269757,1760458233938,-490.10761879,0.00018244,2]
[391269758,1760458233949,-3523.89238121,0.00018244,2]
[391269759,1760458233959,-556.0,0.00018244,2]
[391269760,1760458233968,-166.66,0.00018254,2]
[391269761,1760458233977,-266.0,0.0001827,2]
[391269762,1760458233986,-326.64404405,0.000183,2]
[391269763,1760458233997,-80.35216595,0.000183,2]
[391269764,1760458234006,-406.99621,0.0001833,2]
[391269765,1760458234015,-30.66162405,0.000184,6]
[391269766,1760458234027,-169.33837595,0.000184,6]
[391269767,1760458234036,-321.39943934,0.00018407,2]
[391269768,1760458234048,-555.80181849,0.00018429,2]
[391269769,1760458234061,-1018.5105476,0.00018429,2]
[391269770,1760458234072,-332.3271952,0.00018429,2]
[391269778,1760458238008,-987.16969031,0.00018244,2]
[391269779,1760458238020,-338.67977347,0.00018244,2]
[391269780,1760458238117,-5116.15053622,0.00018244,2]
[391269781,1760458238126,-182.26028281,0.00018429,2]
[391269782,1760458238138,-406.99621,0.0001845,2]
[391269783,1760458238150,-500.0,0.00018471,2]
[391269784,1760458238159,-277.35679052,0.00018489,2]
[391269785,1760458238169,-1465.0027843,0.00018489,2]
[391269786,1760458238178,-2235.3883047,0.00018489,2]
[391269787,1760458238190,-1376.1217796,0.00018489,2]
[391269788,1760458238199,-4.34804043,0.000185,6]
[391269789,1760458238211,-495.65195957,0.000185,6]
[391269790,1760458238221,-376.0,0.00018515,2]
[391269792,1760458238231,-376.0,0.00018527,2]
[391269794,1760458238240,-1676.0,0.00018541,2]
[391269796,1760458238249,-376.0,0.00018556,2]
[391269798,1760458238259,-406.99621,0.0001858,2]
[391269800,1760458238268,-700.0,0.000186,6]
[391269802,1760458238278,-376.0,0.00018609,2]
[391269804,1760458238287,-376.0,0.00018621,2]
[391269806,1760458238296,-1000.0,0.000187,6]
[391269808,1760458238305,-406.99621,0.000187,2]
[391269810,1760458238316,-200.0,0.0001876,2]
[391269812,1760458238325,-434.48560105,0.0001879,2]
[391269815,1760458238341,-257.7504175,0.0001879,2]
[391270000,1760458240087,-1241.92960711,0.0001879,2]
[391270001,1760458240098,-1200.0,0.000188,6]
[391270002,1760458240107,-1934.1656256,0.00018822,2]
[391270003,1760458240117,-406.99621,0.0001883,2]
[391270004,1760458240127,-5888.0,0.00018834,2]
[391270005,1760458240136,-1934.1656256,0.00018854,2]
[391270006,1760458240145,-151.0,0.00018868,2]
[391270007,1760458240156,-500.0,0.00018871,2]
[391270008,1760458240165,-500.0,0.00018871,2]
[391270010,1760458240175,-250.0,0.00018871,2]
[391270012,1760458240185,-250.0,0.00018871,2]
[391270014,1760458240195,-250.0,0.00018871,2]
[391270016,1760458240205,-250.0,0.00018871,2]
[391270018,1760458240215,-250.0,0.00018871,2]
[391270020,1760458240224,-250.0,0.00018871,2]
[391270022,1760458240233,-250.0,0.00018871,2]
[391270024,1760458240242,-250.0,0.00018871,2]
[391270026,1760458240251,-250.0,0.00018871,2]
[391270028,1760458240261,-250.0,0.00018871,2]
[391270030,1760458240270,-250.0,0.00018871,2]
[391270032,1760458240279,-1000.0,0.00018871,2]
[391270034,1760458240289,-2000.0,0.00018871,2]
[391270036,1760458240298,-1729.24495965,0.00018871,2]
[391270038,1760458240307,-286.35925825,0.00018871,2]
[391270040,1760458240316,-33106.1918,0.00018882,2]
[391270042,1760458240326,-2500.0,0.00018882,2]
[391270044,1760458240335,-1000.0,0.00018882,2]
[391270046,1760458240344,-1934.1656256,0.00018886,2]
[391270048,1760458240353,-151.0,0.00018887,2]
[391270050,1760458240362,-619.07684225,0.00018889,2]
[391270052,1760458240372,-894.9345,0.0001889,2]
[391270054,1760458240381,-16741.3862,0.0001889,2]
[391270056,1760458240391,-5000.0,0.0001889,2]
[391270058,1760458240403,-174.19677319,0.0001889,2]
[391270060,1760458240412,-287.28046117,0.0001889,2]
[391270062,1760458240422,-251.09728875,0.0001889,2]
[391270064,1760458240431,-55555.0,0.0001889,2]
[391270066,1760458240441,-315.283,0.000189,2]
[391270068,1760458240451,-200.0,0.000189,6]
[391270070,1760458240465,-1934.1656256,0.00018918,2]
[391270072,1760458240476,-500.0,0.00018939,2]
[391270074,1760458240485,-200.0,0.00018939,2]
[391270076,1760458240495,-500.0,0.0001894,2]
[391270078,1760458240504,-500.0,0.0001894,2]
[391270080,1760458240514,-500.0,0.0001894,2]
[391270082,1760458240524,-500.0,0.0001894,2]
[391270084,1760458240534,-500.0,0.0001894,2]
[391270086,1760458240544,-200.0,0.0001894,2]
[391270088,1760458240554,-1934.1656256,0.0001895,2]
[391270090,1760458240563,-1734.82834598,0.00018952,2]
[391270092,1760458240573,-376.0,0.00018959,2]
[391270094,1760458240583,-376.0,0.0001896,2]
[391270096,1760458240593,-500.0,0.00018973,2]
[391270098,1760458240603,-500.0,0.00018973,2]
[391270100,1760458240613,-159.50309037,0.00018979,2]
[391270102,1760458240624,-1191.5506168,0.00018982,2]
[391270104,1760458240633,-1934.1656256,0.00018982,2]
[391270106,1760458240643,-151.0,0.00018987,2]
[391270108,1760458240655,-280950.8840938,0.00018987,2]
[391270110,1760458240665,-151.0,0.00018987,2]
[391270112,1760458240675,-151.0,0.00018989,2]
[391270114,1760458240684,-156.599559,0.00018989,2]
[391270116,1760458240694,-156.599559,0.00018989,2]
[391270118,1760458240704,-156.599559,0.00018989,2]
[391270120,1760458240713,-151.0,0.00018989,2]
[391270122,1760458240723,-156.599559,0.00018989,2]
[391270124,1760458240732,-151.0,0.00018989,2]
[391270127,1760458240742,-300.0,0.00018989,2]
[391270129,1760458240752,-300.0,0.00018989,2]
[391270131,1760458240761,-400.0,0.00018989,2]
[391270132,1760458240776,-150.0,0.00018989,2]
[391270134,1760458240785,-151.0,0.00018989,2]
[391270136,1760458240795,-151.0,0.00018989,2]
[391270138,1760458240806,-151.0,0.00018989,2]
[391270140,1760458240816,-151.0,0.00018989,2]
[391270142,1760458240825,-160.438304,0.00018989,2]
[391270144,1760458240834,-160.438304,0.00018989,2]
[391270146,1760458240844,-656.169884,0.00018989,2]
[391270149,1760458240858,-160.438304,0.00018989,2]
[391270151,1760458240868,-656.169884,0.00018989,2]
[391270153,1760458240878,-160.438304,0.00018989,2]
[391270154,1760458240887,-656.169884,0.00018989,2]
[391270156,1760458240898,-202.119027,0.00018989,2]
[391270158,1760458240907,-656.169884,0.00018989,2]
[391270160,1760458240917,-202.119027,0.00018989,2]
[391270163,1760458240926,-202.119027,0.00018989,2]
[391270164,1760458240935,-202.119027,0.00018989,2]
[391270167,1760458240945,-151.0,0.00018989,2]
[391270169,1760458240954,-151.0,0.00018989,2]
[391270171,1760458240963,-151.0,0.00018989,2]
[391270172,1760458240973,-151.0,0.00018989,2]
[391270175,1760458240983,-151.0,0.00018989,2]
[391270177,1760458240992,-151.0,0.00018989,2]
[391270179,1760458241001,-151.0,0.00018989,2]
[391270181,1760458241011,-500.0,0.00018989,2]
[391270183,1760458241021,-338.68033468,0.00018989,2]
[391270185,1760458241032,-500.0,0.00018989,2]
[391270187,1760458241042,-524.40000682,0.00018989,2]
[391270223,1760458241373,-524.26312817,0.00018989,2]
[391270226,1760458241391,-500.0,0.00018989,2]
[391270228,1760458241401,-500.0,0.00018989,2]
[391270230,1760458241411,-227.38310687,0.00018989,2]
[391270232,1760458241420,-151.0,0.00018989,2]
[391270234,1760458241430,-500.0,0.00018989,2]
[391270236,1760458241439,-151.0,0.00018989,2]
[391270238,1760458241448,-151.0,0.00018989,2]
[391270240,1760458241457,-10000.0,0.00018989,9]
[391270242,1760458241467,-10000.0,0.00018989,9]
[391270244,1760458241476,-10000.0,0.00018989,9]
[391270246,1760458241486,-151.0,0.00018989,2]
[391270248,1760458241495,-4312.0,0.00018989,2]
[391270250,1760458241505,-500.0,0.0001899,2]
[391270252,1760458241515,-116509.22952654,0.0001899,2]
[391270255,1760458241527,-337.374,0.0001899,2]
[391270257,1760458241539,-3345.40690226,0.0001899,2]
[391270259,1760458241550,-8881.59428922,0.0001899,2]
[391270261,1760458241561,-119653.46189655,0.0001899,2]
[391270264,1760458241572,-40000.0,0.0001899,2]
[391270266,1760458241584,-29838.82656983,0.0001899,2]
[391270268,1760458241595,-4180.0,0.0001899,2]
[391270270,1760458241610,-9954.62348864,0.0001899,2]
[391270273,1760458241621,-1479486.574905,0.0001899,2]
[391270275,1760458241632,-12948.22670582,0.0001899,2]
[391270277,1760458241642,-53119.24710754,0.0001899,2]
[391270279,1760458241655,-4196.94108416,0.0001899,2]
[391270432,1760458243101,-257.505125,0.00018989,2]
[391270434,1760458243111,-789839.71198269,0.0001899,2]
[391270458,1760458243332,-257.505125,0.00018989,2]